bitfinex-derivatives/quotes_BTCF0:USTF0_20240905
["timestamp","ask_amount","ask_price","bid_price","bid_amount"]
[1725539863674,0.86969,56535.0,56534.0,0.00026531]
[1725539863883,2.01450265,56535.0,56534.0,0.00026531]
[1725539864082,0.17692,56525.0,56514.0,0.3608]
[1725539864384,1.25052,56525.0,56510.0,0.088484]
[1725539864590,2.48621527,56525.0,56510.0,0.088484]
[1725539864786,2.48621527,56525.0,56504.0,0.3653]
[1725539865084,2.48621527,56525.0,56519.0,0.00026531]
[1725539865085,2.41546003,56525.0,56519.0,0.00026531]
[1725539865283,0.176936,56520.0,56519.0,0.00026531]
[1725539865483,0.95657386,56520.0,56519.0,0.00026531]
[1725539865685,2.08737386,56520.0,56519.0,0.00026531]
[1725539865992,2.38971834,56520.0,56519.0,3.1e-07]
[1725539866178,2.38971834,56520.0,56497.0,0.5547843]
[1725539866179,0.088475,56516.0,56497.0,0.5547843]
[1725539866491,0.31,56503.0,56497.0,0.5547843]
[1725539866689,0.31,56499.0,56497.0,0.3608]
[1725539867186,0.31,56499.0,56497.0,0.449304]
[1725539867583,0.311,56503.0,56497.0,0.3708]
[1725539867890,0.311,56503.0,56500.0,0.088499]
[1725539868588,0.311,56503.0,56497.0,0.3708]
[1725539868783,0.004,56498.0,56497.0,0.3708]
[1725539869179,0.004,56498.0,56497.0,0.449304]
[1725539869880,0.005,56498.0,56497.0,0.449304]
[1725539870688,0.005,56498.0,56497.0,0.759304]
[1725539871077,0.005,56498.0,56497.0,1.890304]
[1725539871789,0.00026531,56504.0,56503.0,0.088495]
[1725539871975,0.31026531,56504.0,56503.0,0.088495]
[1725539872593,0.39875831,56504.0,56502.0,0.449296]
[1725539872777,0.00026531,56504.0,56503.0,0.088495]
[1725539873191,0.00126531,56504.0,56503.0,0.088495]
[1725539873385,0.00126531,56504.0,56499.0,0.088501]
[1725539873578,0.002,56500.0,56499.0,0.088501]
[1725539875893,0.088503,56498.0,56497.0,0.3648]
[1725539876090,0.002,56498.0,56497.0,0.814104]
[1725539877187,0.003,56498.0,56497.0,0.7256]
[1725539877778,0.091503,56498.0,56497.0,0.7256]
[1725539880291,0.003,56498.0,56497.0,1.345104]
[1725539880591,0.003,56498.0,56497.0,0.7256]
[1725539880780,0.091503,56498.0,56497.0,0.7256]
[1725539880982,0.091503,56498.0,56497.0,0.3648]
[1725539880983,0.180006,56498.0,56497.0,0.3648]
[1725539881184,0.180006,56498.0,56497.0,0.004]
[1725539881694,0.08852,56487.0,56486.0,0.3608]
[1725539881882,0.004,56487.0,56486.0,0.449321]
[1725539882391,0.004,56487.0,56486.0,0.759321]
[1725539882691,0.004,56487.0,56486.0,0.449321]
[1725539882881,0.004,56487.0,56482.0,0.5472]
[1725539883090,0.004,56483.0,56482.0,0.5462]
[1725539883288,0.004,56483.0,56482.0,0.3681]
[1725539883492,0.004,56483.0,56480.0,0.3608]
[1725539883691,0.004,56483.0,56452.0,0.12357393]
[1725539883692,0.6748,56481.0,56469.0,0.1812]
[1725539883897,0.67506556,56481.0,56469.0,0.1812]
[1725539884091,0.67506556,56481.0,56469.0,0.269748]
[1725539884092,0.004,56470.0,56469.0,0.269748]
[1725539884400,0.088531,56480.0,56469.0,0.269748]
[1725539884401,0.088531,56480.0,56470.0,0.088545]
[1725539884594,0.088531,56480.0,56469.0,0.1812]
[1725539884896,0.088531,56480.0,56475.0,0.3608]
[1725539885282,0.67674556,56481.0,56475.0,0.3608]
[1725539885484,0.67506556,56481.0,56475.0,0.3608]
[1725539885789,0.398538,56476.0,56469.0,0.269747]
[1725539885988,0.36506556,56481.0,56468.0,0.54832]
[1725539885989,0.004,56470.0,56468.0,0.36172]
[1725539886196,0.004,56469.0,56468.0,0.3608]
[1725539886495,0.004,56470.0,56468.0,0.3608]
[1725539887196,0.005,56470.0,56469.0,0.088548]
[1725539887497,0.005,56470.0,56469.0,0.619828]
[1725539887687,0.00026556,56481.0,56480.0,0.088531]
[1725539887888,0.00026556,56481.0,56480.0,0.449331]
[1725539888489,0.00026556,56481.0,56480.0,0.3608]
[1725539889092,0.08879456,56481.0,56480.0,0.3608]
[1725539889292,0.088531,56480.0,56475.0,0.088537]
[1725539889597,0.00026556,56481.0,56478.0,0.088533]
[1725539889598,0.01026556,56481.0,56478.0,0.088533]
[1725539889798,0.01026556,56481.0,56480.0,0.002]
[1725539889993,0.01026556,56481.0,56480.0,0.400531]
[1725539890301,0.00126556,56481.0,56480.0,0.931691]
[1725539890884,0.00126556,56481.0,56480.0,1.116191]
[1725539891289,0.00126556,56481.0,56480.0,0.806191]
[1725539891610,0.00126556,56481.0,56480.0,0.275031]
[1725539892103,0.00126556,56481.0,56480.0,0.806191]
[1725539892399,0.00026556,56481.0,56480.0,0.32779058]
[1725539892598,0.00826556,56481.0,56480.0,0.806191]
[1725539892804,5.6e-07,56481.0,56480.0,1.204722]
[1725539893108,0.31,56496.0,56495.0,0.088507]
[1725539893295,0.26093118,56506.0,56495.0,0.6708]
[1725539893498,0.25925118,56506.0,56505.0,0.451292]
[1725539893697,0.1803,56510.0,56505.0,0.3628]
[1725539893894,0.00026556,56511.0,56510.0,0.088484]
[1725539894092,0.08874756,56511.0,56510.0,0.002]
[1725539894398,0.00026556,56511.0,56509.0,0.002]
[1725539894601,0.00026556,56511.0,56510.0,0.449284]
[1725539895411,0.00026556,56511.0,56510.0,1.63293833]
[1725539895590,0.00026556,56511.0,56510.0,1.580164]
[1725539895794,0.31,56526.0,56510.0,1.54445433]
[1725539895999,0.1795,56529.0,56523.0,0.451263]
[1725539896304,0.449242,56537.0,56523.0,0.761263]
[1725539896506,0.31,56534.0,56523.0,0.761263]
[1725539896891,0.3608,56537.0,56523.0,0.761263]
[1725539896892,0.00026556,56529.0,56523.0,1.292023]
[1725539897094,0.00026556,56529.0,56523.0,1.892023]
[1725539897297,0.31,56545.0,56528.0,0.6728]
[1725539897491,0.088426,56547.0,56544.0,0.002]
[1725539897704,0.088426,56547.0,56546.0,0.002]
[1725539897901,0.3608,56548.0,56537.0,0.36188]
[1725539897902,0.088429,56545.0,56537.0,0.36188]
[1725539898101,0.3608,56548.0,56537.0,0.3608]
[1725539898102,0.002,56538.0,56537.0,0.3608]
[1725539898996,0.002,56538.0,56537.0,0.6708]
[1725539899401,0.002,56538.0,56537.0,0.3608]
[1725539899909,0.00026531,56543.0,56537.0,1.80144]
[1725539900102,0.00026531,56543.0,56542.0,0.761234]
[1725539900399,0.005,56547.0,56545.0,0.088428]
[1725539900607,0.31,56560.0,56546.0,0.6728]
[1725539900807,0.31,56560.0,56559.0,0.002]
[1725539900999,0.31,56560.0,56551.0,0.3608]
[1725539901193,0.398406,56560.0,56552.0,0.088418]
[1725539901397,0.3608,56558.0,56550.0,0.00026531]
[1725539901603,0.3608,56558.0,56546.0,0.002]
[1725539901604,0.088426,56547.0,56546.0,0.002]
[1725539901806,0.79538359,56547.0,56546.0,0.002]
[1725539902105,0.03415759,56547.0,56546.0,0.002]
[1725539902296,0.3608,56547.0,56546.0,0.002]
[1725539902794,0.3738,56547.0,56546.0,0.002]
[1725539903000,0.71796137,56547.0,56546.0,0.002]
[1725539903195,1.93690737,56547.0,56546.0,0.002]
[1725539903400,0.088429,56545.0,56541.0,0.00026531]
[1725539903597,0.088454,56529.0,56522.0,0.3608]
[1725539903801,0.400454,56529.0,56522.0,0.3608]
[1725539904100,0.398454,56529.0,56522.0,0.3608]
[1725539904508,0.31,56529.0,56522.0,0.3608]
[1725539904703,0.002,56523.0,56522.0,0.3608]
[1725539905901,0.002,56523.0,56522.0,0.449265]
[1725539907004,0.006,56523.0,56522.0,0.449265]
[1725539907398,0.008,56523.0,56522.0,0.449265]
[1725539907601,0.004,56523.0,56522.0,0.759265]
[1725539907800,0.06944688,56528.0,56522.0,1.80256]
[1725539908003,0.06971219,56531.0,56530.0,0.088453]
[1725539908212,0.00026531,56531.0,56530.0,0.090453]
[1725539908415,0.06944688,56534.0,56530.0,1.49148]
[1725539908708,0.002,56542.0,56533.0,0.002]
[1725539908909,0.088431,56544.0,56536.0,0.3608]
[1725539909115,0.088431,56544.0,56543.0,0.002]
[1725539909811,0.088424,56548.0,56543.0,0.3628]
[1725539910011,0.088424,56548.0,56547.0,0.002]
[1725539910309,0.00026531,56549.0,56547.0,0.002]
[1725539910512,0.00026531,56549.0,56548.0,0.002]
[1725539912815,0.01326531,56549.0,56548.0,0.004]
[1725539913020,0.01326531,56549.0,56548.0,0.092424]
[1725539913920,0.01326531,56549.0,56548.0,0.453224]
[1725539914510,0.10168831,56549.0,56548.0,0.3648]
[1725539914709,0.55091131,56549.0,56548.0,0.004]
[1725539915106,0.088434,56542.0,56541.0,0.002]
[1725539915308,0.090434,56542.0,56541.0,0.002]
[1725539915512,0.002,56542.0,56541.0,0.090435]
[1725539915713,0.68949806,56575.0,56541.0,1.1326]
[1725539915914,0.68949806,56575.0,56559.0,0.088407]
[1725539915915,0.00168,56561.0,56559.0,0.088407]
[1725539916114,0.088404,56561.0,56557.0,0.3608]
[1725539916307,0.002,56558.0,56557.0,0.3608]
[1725539916504,0.090409,56558.0,56557.0,0.3608]
[1725539916816,0.088409,56559.0,56557.0,0.3608]
[1725539917011,0.088409,56559.0,56558.0,0.002]
[1725539918909,0.618849,56559.0,56558.0,0.002]
[1725539919105,0.618849,56559.0,56552.0,0.00026531]
[1725539919106,0.088417,56553.0,56552.0,0.00026531]
[1725539919310,0.486834,56553.0,56552.0,0.00026531]
[1725539919612,1.619314,56553.0,56552.0,0.00026531]
[1725539920012,1.619314,56553.0,56536.0,0.3608]
[1725539920013,1.530897,56553.0,56536.0,0.3608]
[1725539920213,0.090442,56537.0,56536.0,0.3608]
[1725539921019,0.6728,56537.0,56530.0,0.3608]
[1725539921218,0.088449,56532.0,56531.0,0.00026531]
[1725539922815,0.74024688,56537.0,56531.0,0.00026531]
[1725539922816,0.51868888,56537.0,56531.0,0.00026531]
[1725539923011,0.088442,56537.0,56536.0,0.002]
[1725539923320,0.15828973,56537.0,56536.0,0.002]
[1725539923523,0.06984773,56538.0,56536.0,0.002]
[1725539923730,0.00026531,56542.0,56537.0,0.002]
[1725539923917,0.00026531,56542.0,56541.0,0.002]
[1725539924122,0.00026531,56542.0,56540.0,0.31]
[1725539924321,0.00026531,56542.0,56537.0,0.002]
[1725539924627,0.08844,56538.0,56537.0,0.002]
[1725539924824,0.002,56541.0,56537.0,0.002]
[1725539925019,0.002,56541.0,56540.0,0.002]
[1725539925723,0.090435,56541.0,56540.0,0.002]
[1725539926226,0.17887,56541.0,56540.0,0.002]
[1725539926619,0.18187,56541.0,56540.0,0.002]
[1725539927833,0.18287,56541.0,56540.0,0.002]
[1725539929516,0.094435,56541.0,56540.0,0.002]
[1725539929929,0.006,56541.0,56540.0,0.090437]
[1725539930330,0.006,56541.0,56540.0,0.761237]
[1725539930521,0.006,56541.0,56540.0,1.291837]
[1725539930726,0.006,56541.0,56540.0,0.761237]
[1725539931229,0.006,56541.0,56540.0,1.291837]
[1725539932918,0.006,56541.0,56540.0,0.761237]
[1725539933127,0.006,56541.0,56540.0,0.002]
[1725539933420,0.404435,56541.0,56540.0,0.002]
[1725539933731,0.006,56541.0,56540.0,0.002]
[1725539934326,0.006,56541.0,56540.0,0.090437]
[1725539934936,0.006,56541.0,56540.0,0.400437]
[1725539935325,0.006,56541.0,56540.0,0.761237]
[1725539935520,0.006,56541.0,56540.0,0.81401133]
[1725539935733,0.00026531,56542.0,56541.0,0.088435]
[1725539935927,0.00026531,56542.0,56541.0,0.090435]
[1725539936129,0.00026531,56542.0,56541.0,0.285335]
[1725539936738,0.00175,56549.0,56541.0,1.3275]
[1725539937036,0.00175,56549.0,56548.0,0.761224]
[1725539937828,0.00475,56549.0,56548.0,0.81408852]
[1725539938832,0.00475,56549.0,56548.0,0.761224]
[1725539939026,0.00475,56549.0,56548.0,1.891744]
[1725539939226,0.00475,56549.0,56548.0,1.892744]
[1725539939227,0.07475897,56549.0,56548.0,1.892744]
[1725539939431,0.00175,56549.0,56548.0,1.892744]
[1725539939634,0.00275,56549.0,56548.0,0.453224]
[1725539939937,0.08956254,56549.0,56548.0,0.763224]
[1725539940436,0.00275,56549.0,56548.0,0.763224]
[1725539940627,0.00275,56549.0,56548.0,1.893744]
[1725539940628,0.07275647,56549.0,56548.0,1.893744]
[1725539940828,0.00275,56549.0,56548.0,1.982168]
[1725539941024,0.00275,56549.0,56548.0,0.851648]
[1725539941226,0.00275,56549.0,56548.0,0.004]
[1725539941534,0.401173,56549.0,56548.0,0.004]
[1725539941836,0.12533159,56549.0,56548.0,0.004]
[1725539942231,0.11984364,56549.0,56548.0,0.014]
[1725539943036,0.1353974,56549.0,56548.0,0.785224]
[1725539943234,0.03042064,56549.0,56548.0,1.146024]
[1725539943541,0.08923195,56549.0,56548.0,1.146024]
[1725539943838,0.07373945,56549.0,56548.0,2.263544]
[1725539944143,0.00375,56549.0,56548.0,2.340968]
[1725539944331,0.00175,56549.0,56548.0,2.341968]
[1725539944525,0.00175,56549.0,56548.0,2.348968]
[1725539944738,0.07025476,56554.0,56553.0,0.088417]
[1725539944929,0.07025476,56554.0,56553.0,0.761217]
[1725539945132,0.08748195,56559.0,56558.0,0.088409]
[1725539945440,0.11706949,56559.0,56558.0,0.3628]
[1725539945638,0.088407,56559.0,56558.0,0.3628]
[1725539945836,0.12255842,56559.0,56558.0,0.3628]
[1725539946741,0.707254,56559.0,56558.0,0.3628]
[1725539947035,0.088415,56554.0,56553.0,0.00426531]
[1725539947240,0.761215,56554.0,56553.0,0.00426531]
[1725539947543,1.38011,56554.0,56553.0,0.00426531]
[1725539947838,0.761215,56554.0,56553.0,0.00426531]
[1725539948234,1.98011,56554.0,56553.0,0.00426531]
[1725539948432,1.98011,56554.0,56553.0,0.00026531]
[1725539948735,1.56661,56554.0,56553.0,0.00026531]
[1725539949043,1.01766725,56554.0,56553.0,0.00026531]
[1725539949339,1.55014725,56554.0,56553.0,0.00226531]
[1725539949638,1.63856225,56554.0,56553.0,0.00226531]
[1725539949836,1.24014725,56554.0,56553.0,0.00226531]
[1725539950035,0.639715,56554.0,56553.0,0.00226531]
[1725539950242,0.278915,56554.0,56553.0,0.00226531]
[1725539950439,0.809395,56554.0,56553.0,0.00226531]
[1725539950627,1.63856225,56554.0,56553.0,0.00226531]
[1725539950832,1.10808225,56554.0,56553.0,0.00226531]
[1725539951033,1.56861,56554.0,56553.0,0.00226531]
[1725539951340,1.03813,56554.0,56553.0,0.00226531]
[1725539951734,0.088437,56540.0,56534.0,0.31]
[1725539951938,0.088437,56540.0,56536.0,0.3608]
[1725539952939,0.088437,56540.0,56539.0,0.088438]
[1725539953644,0.00026531,56544.0,56538.0,0.31]
[1725539953943,0.00026531,56544.0,56536.0,0.3688]
[1725539953944,0.00026531,56544.0,56543.0,0.761232]
[1725539954149,0.07024228,56544.0,56543.0,0.761232]
[1725539954336,0.07024296,56544.0,56543.0,0.761232]
[1725539955237,0.00026531,56544.0,56543.0,0.761232]
[1725539955434,0.00026531,56544.0,56543.0,1.891792]
[1725539956142,0.00326531,56544.0,56543.0,1.891792]
[1725539956646,0.00026531,56544.0,56543.0,1.291792]
[1725539956839,0.00026531,56544.0,56543.0,0.763232]
[1725539957040,0.00026531,56544.0,56543.0,0.453232]
[1725539957241,0.00026531,56544.0,56543.0,0.763232]
[1725539957439,0.00026531,56544.0,56543.0,1.893792]
[1725539958243,0.00026531,56544.0,56543.0,1.982224]
[1725539958545,0.00026531,56544.0,56543.0,1.99095161]
[1725539958739,0.06997765,56552.0,56551.0,0.17684]
[1725539958939,0.06997765,56556.0,56555.0,0.088413]
[1725539959139,0.06997765,56557.0,56555.0,0.6708]
[1725539959342,0.06997765,56557.0,56556.0,0.312]
[1725539959837,0.06997765,56557.0,56556.0,1.619264]
[1725539960049,0.06997765,56558.0,56557.0,0.08841]
[1725539960342,0.06997765,56558.0,56557.0,0.40041]
[1725539960741,0.00026531,56562.0,56561.0,0.088404]
[1725539960942,0.00026531,56562.0,56561.0,0.761204]
[1725539962256,0.30473406,56576.0,56561.0,0.761204]
[1725539962257,0.06997765,56571.0,56561.0,1.8032]
[1725539962441,0.4833256,56586.0,56570.0,0.3608]
[1725539962442,0.06997765,56573.0,56570.0,0.3608]
[1725539962637,0.088377,56579.0,56572.0,0.312]
[1725539962638,0.15835465,56579.0,56572.0,0.312]
[1725539962941,0.088382,56575.0,56571.0,0.088388]
[1725539963143,0.088382,56575.0,56570.0,0.3628]
[1725539963144,0.002,56572.0,56570.0,0.3628]
[1725539963342,0.002,56572.0,56571.0,0.088388]
[1725539964440,0.090387,56572.0,56570.0,0.3638]
[1725539964738,0.090387,56572.0,56570.0,0.3648]
[1725539964941,0.002,56571.0,56570.0,0.45319]
[1725539965444,0.090388,56571.0,56570.0,0.3648]
[1725539965655,0.090388,56571.0,56570.0,0.004]
[1725539966442,0.090388,56571.0,56570.0,0.003]
[1725539966749,0.093388,56571.0,56570.0,0.004]
[1725539968961,0.11109358,56571.0,56570.0,0.09099001]
[1725539969254,0.11109313,56571.0,56570.0,0.09099001]
[1725539969855,0.11109313,56571.0,56570.0,0.08999001]
[1725539969856,0.10809313,56571.0,56570.0,0.08999001]
[1725539970048,0.10809313,56571.0,56570.0,0.08839]
[1725539971144,0.19648113,56571.0,56570.0,0.08839]
[1725539971343,0.19648113,56571.0,56569.0,0.3608]
[1725539971344,0.08839,56570.0,56569.0,0.3608]
[1725539971565,0.19648313,56570.0,56569.0,0.3608]
[1725539971857,0.15319566,56570.0,56569.0,0.759192]
[1725539972053,0.06480566,56570.0,56569.0,0.759192]
[1725539972253,0.03066022,56570.0,56569.0,0.759192]
[1725539972446,0.002,56570.0,56569.0,0.759192]
[1725539972749,0.003,56570.0,56569.0,0.759192]
[1725539972950,0.12530932,56570.0,56569.0,0.759192]
[1725539973170,0.18711498,56570.0,56569.0,0.759192]
[1725539973362,0.18711498,56570.0,56569.0,0.760192]
[1725539973653,0.1080904,56570.0,56569.0,0.450192]
[1725539973957,0.12429023,56570.0,56569.0,0.450192]
[1725539974142,0.18709138,56570.0,56569.0,0.450192]
[1725539974543,0.06480115,56570.0,56569.0,0.450192]
[1725539974742,0.06480115,56570.0,56569.0,0.980512]
[1725539974957,0.06480115,56570.0,56569.0,1.363912]
[1725539975154,0.06479806,56570.0,56569.0,1.363912]
[1725539975452,0.03065816,56570.0,56569.0,1.363912]
[1725539975640,0.06579753,56570.0,56569.0,1.362912]
[1725539975842,0.003,56570.0,56569.0,1.362912]
[1725539976245,0.002,56570.0,56569.0,1.363912]
[1725539978154,0.002,56570.0,56569.0,0.833592]
[1725539979948,0.002,56570.0,56569.0,1.073592]
[1725539981849,0.002,56570.0,56569.0,0.690192]
[1725539983457,0.002,56570.0,56569.0,0.3618]
[1725539983657,0.33039,56570.0,56569.0,0.001]
[1725539983866,0.11905042,56570.0,56569.0,0.001]
[1725539984868,0.22383244,56570.0,56569.0,0.001]
[1725539985055,0.11905042,56570.0,56569.0,0.001]
[1725539986351,0.11905042,56570.0,56569.0,0.3618]
[1725539986848,0.11905042,56570.0,56569.0,0.001]
[1725539986849,0.15319681,56570.0,56569.0,0.001]
[1725539987049,0.1531956,56570.0,56569.0,0.001]
[1725539987356,0.11905042,56570.0,56569.0,0.001]
[1725539988061,0.15319355,56570.0,56569.0,0.001]
[1725539988553,0.15319355,56570.0,56569.0,0.089392]
[1725539988754,0.06480355,56570.0,56569.0,0.089392]
[1725539988955,0.03066042,56570.0,56569.0,0.089392]
[1725539989170,0.03066042,56570.0,56569.0,0.288992]
[1725539989556,0.03066042,56570.0,56569.0,0.089392]
[1725539989864,0.11905042,56570.0,56569.0,0.089392]
[1725539990661,0.19560431,56570.0,56569.0,0.089392]
[1725539990966,0.22426129,56570.0,56569.0,0.089392]
[1725539991163,0.11905042,56570.0,56569.0,0.001]
[1725539991464,0.15319354,56570.0,56569.0,0.001]
[1725539993067,0.15319255,56570.0,56569.0,0.001]
[1725539993473,0.15319255,56570.0,56569.0,0.089392]
[1725539993768,0.06480255,56570.0,56569.0,0.329392]
[1725539994557,0.0306588,56570.0,56569.0,0.329392]
[1725539994871,0.13590134,56570.0,56569.0,0.329392]
[1725539995373,0.13590134,56570.0,56569.0,0.089392]
[1725539995577,0.0306588,56570.0,56569.0,0.089392]
[1725539995968,0.1190488,56570.0,56569.0,0.001]
[1725539996169,0.15319063,56570.0,56569.0,0.001]
[1725539998875,0.09039,56570.0,56569.0,0.001]
[1725539999574,0.17810042,56570.0,56569.0,0.001]
[1725540000176,0.17810042,56570.0,56569.0,0.241]
[1725540000373,0.002,56570.0,56569.0,0.329392]
[1725540000579,0.07217137,56570.0,56569.0,0.329392]
[1725540000770,0.002,56570.0,56569.0,0.38225652]
[1725540000966,0.002,56570.0,56569.0,0.329392]
[1725540001673,0.07217137,56570.0,56569.0,0.329392]
[1725540001877,0.16056137,56570.0,56569.0,0.001]
[1725540002076,0.17878,56570.0,56569.0,0.001]
[1725540002374,0.20743905,56570.0,56569.0,0.001]
[1725540002580,0.265179,56568.0,56567.0,0.00026531]
[1725540002774,0.265179,56568.0,56550.0,0.6008]
[1725540002775,0.088409,56558.0,56554.0,0.05286452]
[1725540002982,0.088417,56553.0,56551.0,0.05286452]
[1725540003282,0.088417,56553.0,56552.0,0.05286452]
[1725540003483,0.088417,56553.0,56550.0,0.65458452]
[1725540003672,0.002,56551.0,56550.0,0.6008]
[1725540003867,0.002,56551.0,56548.0,0.05286452]
[1725540003868,0.088422,56550.0,56548.0,0.05286452]
[1725540004071,0.088424,56548.0,56547.0,0.3608]
[1725540004272,0.090424,56548.0,56547.0,0.3608]
[1725540004481,0.088424,56548.0,56547.0,0.3608]
[1725540004877,0.002,56549.0,56547.0,0.449226]
[1725540005176,0.002,56549.0,56548.0,0.620944]
[1725540005378,0.00026531,56557.0,56548.0,0.67380852]
[1725540005577,0.00026531,56557.0,56556.0,0.451212]
[1725540007371,0.08867531,56557.0,56556.0,0.002]
[1725540007675,0.15881218,56557.0,56556.0,0.002]
[1725540007878,0.39881218,56557.0,56556.0,0.002]
[1725540008076,0.39881218,56557.0,56556.0,0.005]
[1725540008576,0.32967531,56557.0,56556.0,0.002]
[1725540008778,1.63619385,56557.0,56556.0,0.002]
[1725540009086,0.176848,56548.0,56547.0,0.3608]
[1725540009274,0.418848,56548.0,56547.0,0.3608]
[1725540009479,0.176852,56547.0,56546.0,0.00026531]
[1725540009784,0.088446,56534.0,56533.0,0.3608]
[1725540009979,0.090446,56534.0,56533.0,0.3608]
[1725540010383,0.002,56534.0,56533.0,0.3608]
[1725540010778,0.330446,56534.0,56533.0,0.3608]
[1725540011086,0.330446,56534.0,56528.0,0.24026531]
[1725540011087,0.088454,56529.0,56528.0,0.00026531]
[1725540011383,0.090454,56529.0,56528.0,0.00026531]
[1725540011886,1.298628,56529.0,56528.0,0.00026531]
[1725540012092,0.079454,56529.0,56528.0,0.00026531]
[1725540012783,0.003,56529.0,56528.0,0.00026531]
[1725540013585,0.091454,56529.0,56528.0,0.00026531]
[1725540013779,0.003,56529.0,56528.0,0.00026531]
[1725540014880,0.006,56529.0,56528.0,0.00026531]
[1725540015286,0.094454,56529.0,56528.0,0.00026531]
[1725540015983,0.006,56529.0,56528.0,0.00026531]
[1725540016187,0.006,56529.0,56528.0,0.08872131]
[1725540016883,0.765254,56529.0,56528.0,0.00026531]
[1725540017076,0.094454,56529.0,56528.0,0.00026531]
[1725540017277,0.095454,56529.0,56528.0,0.00026531]
[1725540017682,0.095454,56529.0,56528.0,0.00426531]
[1725540018475,0.090454,56529.0,56528.0,0.00526531]
[1725540018782,0.096454,56529.0,56528.0,0.00526531]
[1725540019181,0.096454,56529.0,56528.0,0.00126531]
[1725540020391,0.096454,56529.0,56528.0,0.31126531]
[1725540020581,0.008,56529.0,56528.0,0.31126531]
[1725540021585,0.008,56529.0,56528.0,0.39972131]
[1725540021793,0.00975,56529.0,56528.0,0.08972131]
[1725540021987,0.00975,56529.0,56528.0,0.00126531]
[1725540022287,0.408204,56529.0,56528.0,0.00126531]
[1725540022986,0.098204,56529.0,56528.0,0.00126531]
[1725540025178,0.496658,56529.0,56528.0,0.00126531]
[1725540026077,1.657378,56529.0,56528.0,0.00126531]
[1725540026589,0.31,56523.0,56518.0,0.014]
[1725540026787,0.002,56519.0,56518.0,0.014]
[1725540026991,0.09047,56519.0,56518.0,0.014]
[1725540027686,0.002,56519.0,56518.0,0.102471]
[1725540027990,0.09047,56519.0,56518.0,0.019]
[1725540028992,0.002,56519.0,56518.0,0.107471]
[1725540029291,0.09047,56519.0,56518.0,0.107471]
[1725540029594,0.002,56519.0,56518.0,0.475271]
[1725540029780,0.08741703,56544.0,56518.0,0.475271]
[1725540029781,0.3608,56547.0,56519.0,0.53076]
[1725540029990,0.3608,56547.0,56546.0,0.002]
[1725540029991,0.449226,56547.0,56546.0,0.002]
[1725540030288,0.449226,56547.0,56546.0,0.00180001]
[1725540031396,0.462226,56547.0,56546.0,0.001]
[1725540031992,0.088434,56542.0,56541.0,0.00026531]
[1725540032197,0.090434,56542.0,56541.0,0.00026531]
[1725540034788,1.670268,56542.0,56541.0,0.00026531]
[1725540034993,1.581834,56542.0,56541.0,0.00026531]
[1725540035395,1.581834,56542.0,56526.0,0.5652]
[1725540035396,0.088451,56532.0,56526.0,0.5652]
[1725540035590,0.088451,56532.0,56526.0,0.3608]
[1725540035794,0.088451,56532.0,56519.0,0.44316452]
[1725540035795,0.088462,56524.0,56519.0,0.44316452]
[1725540036095,0.002,56527.0,56523.0,0.449263]
[1725540036096,0.088457,56527.0,56523.0,0.449263]
[1725540036503,0.088457,56527.0,56526.0,0.002]
[1725540036701,0.088457,56527.0,56526.0,0.013]
[1725540037392,0.088457,56527.0,56526.0,0.002]
[1725540037699,0.088457,56527.0,56526.0,0.3698]
[1725540038491,0.091457,56527.0,56526.0,0.3628]
[1725540038885,0.091457,56527.0,56526.0,0.002]
[1725540039797,0.179914,56527.0,56526.0,0.002]
[1725540039999,0.088468,56520.0,56519.0,0.00026531]
[1725540040398,0.090468,56520.0,56519.0,0.00026531]
[1725540041290,0.090468,56520.0,56519.0,0.00726531]
[1725540041291,0.709736,56520.0,56519.0,0.00726531]
[1725540041602,0.178936,56520.0,56519.0,0.00726531]
[1725540041798,1.3796742,56520.0,56519.0,0.01126531]
[1725540042002,1.6896742,56520.0,56519.0,0.01126531]
[1725540042405,1.619736,56520.0,56519.0,0.01126531]
[1725540042605,1.621736,56520.0,56519.0,0.00726531]
[1725540043193,1.021736,56520.0,56519.0,0.00726531]
[1725540043602,1.021736,56520.0,56519.0,0.00026531]
[1725540044200,1.621736,56520.0,56519.0,0.00026531]
[1725540047600,1.021736,56520.0,56519.0,0.00026531]
[1725540047915,1.621736,56520.0,56519.0,0.00026531]
[1725540048306,0.490936,56520.0,56519.0,0.00026531]
[1725540048505,0.314,56520.0,56519.0,0.00026531]
[1725540048698,0.004,56520.0,56519.0,0.39873531]
[1725540048904,0.004,56520.0,56519.0,0.20086531]
[1725540049711,0.092468,56520.0,56519.0,0.20086531]
[1725540049913,0.004,56520.0,56519.0,0.96013531]
[1725540051504,0.004,56520.0,56519.0,1.04860531]
[1725540051702,0.00026531,56531.0,56530.0,0.088453]
[1725540052009,0.00026531,56531.0,56530.0,0.090453]
[1725540052406,0.00026531,56531.0,56530.0,0.484553]
[1725540054007,0.00026531,56531.0,56530.0,0.485553]
[1725540054614,0.00026531,56531.0,56530.0,0.491553]
[1725540055003,0.00326531,56531.0,56530.0,0.491553]
[1725540056013,0.00326531,56531.0,56530.0,0.801553]
[1725540056209,0.00326531,56531.0,56530.0,0.794553]
[1725540057699,0.3608,56542.0,56530.0,2.013686]
[1725540057899,0.3608,56542.0,56541.0,0.090435]
[1725540058312,0.3608,56542.0,56541.0,0.291035]
[1725540059107,0.3949626,56542.0,56541.0,0.291035]
[1725540059308,0.0341626,56542.0,56541.0,0.651835]
[1725540059611,0.10472756,56542.0,56541.0,0.5634]
[1725540059812,0.10472756,56543.0,56541.0,0.5634]
[1725540060111,0.006,56542.0,56541.0,0.651835]